[Event "Late-Titled-Tuesday-Blitz-May-28-2024"]
[Site "Chess.com"]
[Date "2024.05.28"]
[Round "1"]
[White "attack2mateU"]
[Black "Qvalda"]
[Result "1/2-1/2"]
[WhiteElo "2695"]
[BlackElo "2415"]
[TimeControl "180+1"]
[EndTime "14:07:54 PDT"]
[Termination "Game drawn - insufficient material"]

1. e4 {[%clk 0:03:00.9]} 1... d5 {[%clk 0:02:56.3]} 2. exd5 {[%clk 0:03:00.6]}
2... Qxd5 {[%clk 0:02:57.2]} 3. Nc3 {[%clk 0:03:00.8]} 3... Qd8 {[%clk
0:02:57.3]} 4. d4 {[%clk 0:03:01.4]} 4... Nf6 {[%clk 0:02:57.7]} 5. Nf3 {[%clk
0:03:02]} 5... g6 {[%clk 0:02:58.4]} 6. Bc4 {[%clk 0:02:51.5]} 6... Bg7 {[%clk
0:02:58.5]} 7. O-O {[%clk 0:02:51.4]} 7... O-O {[%clk 0:02:58.9]} 8. h3 {[%clk
0:02:51.3]} 8... Nc6 {[%clk 0:02:58.7]} 9. a3 {[%clk 0:02:30.9]} 9... a6 {[%clk
0:02:58.2]} 10. d5 {[%clk 0:02:30.5]} 10... Na5 {[%clk 0:02:57.6]} 11. Ba2
{[%clk 0:02:31]} 11... c6 {[%clk 0:02:38.4]} 12. Re1 {[%clk 0:01:45.2]} 12...
cxd5 {[%clk 0:02:36.6]} 13. Nxd5 {[%clk 0:01:46.1]} 13... Nxd5 {[%clk
0:02:36.2]} 14. Qxd5 {[%clk 0:01:46.8]} 14... Qxd5 {[%clk 0:02:20.3]} 15. Bxd5
{[%clk 0:01:47.7]} 15... e6 {[%clk 0:02:20.7]} 16. Be4 {[%clk 0:01:47.1]} 16...
f5 {[%clk 0:02:03]} 17. Bd3 {[%clk 0:01:46.7]} 17... Nc6 {[%clk 0:01:54.5]} 18.
Bc4 {[%clk 0:01:34.9]} 18... Kh8 {[%clk 0:01:41.9]} 19. Bxe6 {[%clk 0:00:52.9]}
19... Re8 {[%clk 0:01:42.1]} 20. Bxc8 {[%clk 0:00:52]} 20... Rxe1+ {[%clk
0:01:41.5]} 21. Nxe1 {[%clk 0:00:52.9]} 21... Rxc8 {[%clk 0:01:41.7]} 22. c3
{[%clk 0:00:45.1]} 22... Na5 {[%clk 0:01:41.1]} 23. Kf1 {[%clk 0:00:38.5]} 23...
Nb3 {[%clk 0:01:34.4]} 24. Rb1 {[%clk 0:00:38.8]} 24... Rd8 {[%clk 0:01:29.7]}
25. Ke2 {[%clk 0:00:33.3]} 25... Kg8 {[%clk 0:01:10.8]} 26. Be3 {[%clk
0:00:31.4]} 26... Kf7 {[%clk 0:01:07.8]} 27. Rd1 {[%clk 0:00:31.8]} 27... Rxd1
{[%clk 0:01:00.5]} 28. Kxd1 {[%clk 0:00:32.7]} 28... Ke6 {[%clk 0:01:00.9]} 29.
Kc2 {[%clk 0:00:32.3]} 29... Na5 {[%clk 0:00:53.9]} 30. Nf3 {[%clk 0:00:32.5]}
30... Kd5 {[%clk 0:00:50.8]} 31. Nd2 {[%clk 0:00:26.3]} 31... b5 {[%clk
0:00:50.2]} 32. b3 {[%clk 0:00:25.5]} 32... Bf8 {[%clk 0:00:48.1]} 33. Bb6
{[%clk 0:00:25.3]} 33... Nc6 {[%clk 0:00:43.9]} 34. c4+ {[%clk 0:00:22.7]} 34...
bxc4 {[%clk 0:00:42]} 35. Nxc4 {[%clk 0:00:23.6]} 35... Nd4+ {[%clk 0:00:37.6]}
36. Bxd4 {[%clk 0:00:21.6]} 36... Kxd4 {[%clk 0:00:38.5]} 37. a4 {[%clk
0:00:19.6]} 37... Bb4 {[%clk 0:00:34.2]} 38. Nb2 {[%clk 0:00:18.4]} 38... a5
{[%clk 0:00:21.3]} 39. Nd3 {[%clk 0:00:19]} 39... Bd6 {[%clk 0:00:21.3]} 40. Kd2
{[%clk 0:00:17.5]} 40... g5 {[%clk 0:00:19.7]} 41. f3 {[%clk 0:00:12.3]} 41...
h5 {[%clk 0:00:18.1]} 42. g4 {[%clk 0:00:08.9]} 42... fxg4 {[%clk 0:00:17.6]}
43. fxg4 {[%clk 0:00:09.8]} 43... hxg4 {[%clk 0:00:16.3]} 44. hxg4 {[%clk
0:00:10.7]} 44... Ke4 {[%clk 0:00:15]} 45. Kc3 {[%clk 0:00:11.6]} 45... Kf3
{[%clk 0:00:11.5]} 46. b4 {[%clk 0:00:06.8]} 46... axb4+ {[%clk 0:00:11]} 47.
Nxb4 {[%clk 0:00:07.7]} 47... Kxg4 {[%clk 0:00:08.6]} 48. a5 {[%clk 0:00:07.9]}
48... Kf3 {[%clk 0:00:06.6]} 49. Nd3 {[%clk 0:00:06.1]} 49... g4 {[%clk
0:00:05.5]} 50. a6 {[%clk 0:00:06.5]} 50... Bb8 {[%clk 0:00:05.6]} 51. Kc4
{[%clk 0:00:03.3]} 51... g3 {[%clk 0:00:05.9]} 52. Kd5 {[%clk 0:00:03.9]} 52...
g2 {[%clk 0:00:06.2]} 53. Ne1+ {[%clk 0:00:04]} 53... Kf2 {[%clk 0:00:06.3]} 54.
Nxg2 {[%clk 0:00:04.9]} 54... Kxg2 {[%clk 0:00:07]} 55. Kc6 {[%clk 0:00:05.8]}
55... Ba7 {[%clk 0:00:07]} 56. Kb7 {[%clk 0:00:06.7]} 56... Bf2 {[%clk
0:00:07.2]} 57. a7 {[%clk 0:00:06.8]} 57... Bxa7 {[%clk 0:00:07.6]} 1/2-1/2

[Event "Late-Titled-Tuesday-Blitz-May-28-2024"]
[Site "Chess.com"]
[Date "2024.05.28"]
[Round "1"]
[White "GarayevKanan"]
[Black "maracayo"]
[Result "1-0"]
[WhiteElo "2706"]
[BlackElo "2409"]
[TimeControl "180+1"]
[EndTime "14:07:57 PDT"]
[Termination "GarayevKanan won on time"]

1. d4 {[%clk 0:02:59.4]} 1... d6 {[%clk 0:02:59.2]} 2. e4 {[%clk 0:02:47.5]}
2... Nf6 {[%clk 0:02:58.7]} 3. Nc3 {[%clk 0:02:47.6]} 3... c6 {[%clk 0:02:59]}
4. a4 {[%clk 0:02:47.3]} 4... Qa5 {[%clk 0:02:58.1]} 5. Qd3 {[%clk 0:02:41.7]}
5... e5 {[%clk 0:02:57.2]} 6. Nf3 {[%clk 0:02:36]} 6... Nbd7 {[%clk 0:02:56.5]}
7. Be2 {[%clk 0:02:35]} 7... Be7 {[%clk 0:02:55.7]} 8. O-O {[%clk 0:02:34.8]}
8... O-O {[%clk 0:02:54.9]} 9. Bg5 {[%clk 0:02:32.4]} 9... Re8 {[%clk
0:02:34.8]} 10. Rab1 {[%clk 0:02:22.5]} 10... exd4 {[%clk 0:02:30]} 11. Qxd4
{[%clk 0:02:21.9]} 11... Ne5 {[%clk 0:02:28.7]} 12. b4 {[%clk 0:02:19.3]} 12...
Qc7 {[%clk 0:02:26.7]} 13. Bf4 {[%clk 0:02:16.3]} 13... Bf8 {[%clk 0:02:22]} 14.
h3 {[%clk 0:02:11.6]} 14... h6 {[%clk 0:02:12.3]} 15. Bh2 {[%clk 0:02:06.1]}
15... Bd7 {[%clk 0:02:09.9]} 16. Nd2 {[%clk 0:01:58.3]} 16... a5 {[%clk
0:01:54.8]} 17. f4 {[%clk 0:01:54]} 17... axb4 {[%clk 0:01:48.4]} 18. Qxb4
{[%clk 0:01:54.9]} 18... Ng6 {[%clk 0:01:40.5]} 19. Qxb7 {[%clk 0:01:48.6]}
19... Qa5 {[%clk 0:01:34.3]} 20. Qb4 {[%clk 0:01:35.7]} 20... Qxb4 {[%clk
0:01:27.7]} 21. Rxb4 {[%clk 0:01:36.6]} 21... d5 {[%clk 0:01:28.2]} 22. Rb7
{[%clk 0:01:35.6]} 22... Bc8 {[%clk 0:00:45.2]} 23. Rbb1 {[%clk 0:01:30]} 23...
dxe4 {[%clk 0:00:30.5]} 24. Kh1 {[%clk 0:00:50.3]} 24... e3 {[%clk 0:00:24]} 25.
Nc4 {[%clk 0:00:42.2]} 25... Bf5 {[%clk 0:00:23.9]} 26. Bd3 {[%clk 0:00:36.5]}
26... Ne4 {[%clk 0:00:20]} 27. Bxe4 {[%clk 0:00:31.2]} 27... Bxe4 {[%clk
0:00:20.9]} 28. Nxe3 {[%clk 0:00:31.6]} 28... Bc5 {[%clk 0:00:17.8]} 29. Nxe4
{[%clk 0:00:29.2]} 29... Rxe4 {[%clk 0:00:18.7]} 30. Nf5 {[%clk 0:00:28.1]}
30... Raxa4 {[%clk 0:00:15.5]} 31. g3 {[%clk 0:00:23.6]} 31... Re2 {[%clk
0:00:14]} 32. Bg1 {[%clk 0:00:20.6]} 32... Bxg1 {[%clk 0:00:12.7]} 33. Kxg1
{[%clk 0:00:21.5]} 33... Rxc2 {[%clk 0:00:11.7]} 34. Rbc1 {[%clk 0:00:21.9]}
34... Raa2 {[%clk 0:00:11.1]} 35. Rxc2 {[%clk 0:00:20.3]} 35... Rxc2 {[%clk
0:00:12]} 36. Rb1 {[%clk 0:00:20.6]} 36... h5 {[%clk 0:00:12.1]} 37. h4 {[%clk
0:00:20.5]} 37... Kh7 {[%clk 0:00:11.1]} 38. Rb7 {[%clk 0:00:20.7]} 38... Nh8
{[%clk 0:00:10.7]} 39. Rc7 {[%clk 0:00:19.7]} 39... Rc5 {[%clk 0:00:10.7]} 40.
Ne7 {[%clk 0:00:18.7]} 40... Rc3 {[%clk 0:00:10.3]} 41. Kg2 {[%clk 0:00:18.7]}
41... c5 {[%clk 0:00:10.2]} 42. Kh3 {[%clk 0:00:17.6]} 42... Rc1 {[%clk
0:00:09.5]} 43. Nd5 {[%clk 0:00:14.5]} 43... f5 {[%clk 0:00:08.3]} 44. Nf6+
{[%clk 0:00:12.3]} 44... Kg6 {[%clk 0:00:08.3]} 45. Ne8 {[%clk 0:00:10.8]} 45...
Nf7 {[%clk 0:00:07.1]} 46. Rc6+ {[%clk 0:00:11.2]} 46... Kh7 {[%clk 0:00:06.9]}
47. Rc7 {[%clk 0:00:12.1]} 47... Kg6 {[%clk 0:00:07.1]} 48. Rc6+ {[%clk
0:00:12]} 48... Kh7 {[%clk 0:00:07.2]} 49. Nc7 {[%clk 0:00:12.9]} 49... Nh6
{[%clk 0:00:06.1]} 50. Ne6 {[%clk 0:00:12.4]} 50... Ng4 {[%clk 0:00:06.2]} 51.
Ng5+ {[%clk 0:00:13]} 1-0

[Event "Late-Titled-Tuesday-Blitz-May-28-2024"]
[Site "Chess.com"]
[Date "2024.05.28"]
[Round "1"]
[White "Navyblue1"]
[Black "KChor05"]
[Result "0-1"]
[WhiteElo "2242"]
[BlackElo "2578"]
[TimeControl "180+1"]
[EndTime "14:07:57 PDT"]
[Termination "KChor05 won by resignation"]

1. d4 {[%clk 0:02:59.4]} 1... Nf6 {[%clk 0:02:59.8]} 2. c4 {[%clk 0:02:54.9]}
2... g6 {[%clk 0:03:00.1]} 3. Nc3 {[%clk 0:02:50.7]} 3... d5 {[%clk 0:02:56.9]}
4. cxd5 {[%clk 0:02:47.5]} 4... Nxd5 {[%clk 0:02:57.8]} 5. e4 {[%clk 0:02:47.2]}
5... Nxc3 {[%clk 0:02:53.4]} 6. bxc3 {[%clk 0:02:48.1]} 6... Bg7 {[%clk
0:02:53.7]} 7. Be3 {[%clk 0:02:48.3]} 7... O-O {[%clk 0:02:53.1]} 8. Bc4 {[%clk
0:02:48.2]} 8... Nc6 {[%clk 0:02:46.3]} 9. Ne2 {[%clk 0:02:45.1]} 9... e5 {[%clk
0:02:45.3]} 10. O-O {[%clk 0:02:40.6]} 10... Bg4 {[%clk 0:02:39]} 11. f3 {[%clk
0:02:39.1]} 11... Bd7 {[%clk 0:02:38.6]} 12. Bb3 {[%clk 0:02:17.6]} 12... Na5
{[%clk 0:02:30.6]} 13. c4 {[%clk 0:01:35.6]} 13... exd4 {[%clk 0:02:09.9]} 14.
Bxd4 {[%clk 0:01:33.3]} 14... Nc6 {[%clk 0:02:02.8]} 15. Bxg7 {[%clk 0:01:32.4]}
15... Kxg7 {[%clk 0:02:03.7]} 16. Qd2 {[%clk 0:01:27.5]} 16... Qe7 {[%clk
0:02:01.3]} 17. Qc3+ {[%clk 0:01:23.4]} 17... Kg8 {[%clk 0:01:59.3]} 18. Rad1
{[%clk 0:01:20.8]} 18... Qc5+ {[%clk 0:01:54.8]} 19. Kh1 {[%clk 0:01:18.1]}
19... Rad8 {[%clk 0:01:53.4]} 20. Nd4 {[%clk 0:01:15]} 20... a6 {[%clk
0:01:20.9]} 21. Nxc6 {[%clk 0:01:00.6]} 21... Bxc6 {[%clk 0:01:21.8]} 22. Qf6
{[%clk 0:00:53.7]} 22... Rxd1 {[%clk 0:01:08.9]} 23. Rxd1 {[%clk 0:00:51.3]}
23... a5 {[%clk 0:01:09.8]} 24. Qd4 {[%clk 0:00:48.3]} 24... Qxd4 {[%clk
0:01:01.5]} 25. Rxd4 {[%clk 0:00:46.4]} 25... a4 {[%clk 0:01:01.7]} 26. Bc2
{[%clk 0:00:45.7]} 26... Kg7 {[%clk 0:01:01.9]} 27. Kg1 {[%clk 0:00:43.9]} 27...
Kf6 {[%clk 0:01:01.8]} 28. Kf2 {[%clk 0:00:43]} 28... Ra8 {[%clk 0:00:58.4]} 29.
Ke3 {[%clk 0:00:40.9]} 29... h5 {[%clk 0:00:56.5]} 30. g3 {[%clk 0:00:35.4]}
30... Ra6 {[%clk 0:00:56.3]} 31. f4 {[%clk 0:00:31]} 31... Rb6 {[%clk
0:00:55.8]} 32. e5+ {[%clk 0:00:30.2]} 32... Ke7 {[%clk 0:00:56.1]} 33. Rd2
{[%clk 0:00:22.6]} 33... Rb4 {[%clk 0:00:51.7]} 34. Bd3 {[%clk 0:00:22.5]} 34...
a3 {[%clk 0:00:49.9]} 35. Kd4 {[%clk 0:00:20.5]} 35... Bd7 {[%clk 0:00:44.4]}
36. Kc3 {[%clk 0:00:20.3]} 36... c5 {[%clk 0:00:44.5]} 37. Bc2 {[%clk
0:00:18.6]} 37... Be6 {[%clk 0:00:42.1]} 38. Bb3 {[%clk 0:00:17.9]} 38... Rb6
{[%clk 0:00:34.2]} 39. Re2 {[%clk 0:00:17.1]} 39... Bf5 {[%clk 0:00:33.4]} 40.
Rd2 {[%clk 0:00:17.2]} 40... Bb1 {[%clk 0:00:32.1]} 41. Rd1 {[%clk 0:00:16.3]}
41... Be4 {[%clk 0:00:30.2]} 42. Rd2 {[%clk 0:00:15.8]} 42... Ke6 {[%clk
0:00:30.2]} 43. Re2 {[%clk 0:00:14.5]} 43... Kf5 {[%clk 0:00:30.2]} 44. Re3
{[%clk 0:00:11.6]} 44... Bb1 {[%clk 0:00:26.9]} 45. Re1 {[%clk 0:00:10.3]} 45...
Be4 {[%clk 0:00:26.3]} 46. Re3 {[%clk 0:00:10.5]} 46... Bc6 {[%clk 0:00:25]} 47.
Bc2+ {[%clk 0:00:09]} 47... Kg4 {[%clk 0:00:25.4]} 48. Bb3 {[%clk 0:00:06.7]}
48... Bg2 {[%clk 0:00:23.6]} 49. Re2 {[%clk 0:00:06.1]} 49... Kh3 {[%clk
0:00:22.2]} 50. Bc2 {[%clk 0:00:05]} 50... Rb2 {[%clk 0:00:20.8]} 51. Rd2 {[%clk
0:00:03.5]} 51... Kxh2 {[%clk 0:00:19.3]} 52. e6 {[%clk 0:00:03.7]} 52... fxe6
{[%clk 0:00:17.5]} 53. Bxg6 {[%clk 0:00:03.7]} 53... Rxd2 {[%clk 0:00:15.7]} 54.
Kxd2 {[%clk 0:00:04.6]} 54... Kxg3 {[%clk 0:00:16.1]} 55. Bxh5 {[%clk
0:00:04.6]} 55... Kxf4 {[%clk 0:00:16.7]} 56. Bf7 {[%clk 0:00:04.8]} 56... Ke5
{[%clk 0:00:15.6]} 57. Ke3 {[%clk 0:00:04.6]} 57... Bf1 {[%clk 0:00:15.3]} 58.
Be8 {[%clk 0:00:03.8]} 58... Bxc4 {[%clk 0:00:15]} 0-1

[Event "Late-Titled-Tuesday-Blitz-May-28-2024"]
[Site "Chess.com"]
[Date "2024.05.28"]
[Round "1"]
[White "Mikhail_Bryakin"]
[Black "db-banana"]
[Result "1-0"]
[WhiteElo "2853"]
[BlackElo "2472"]
[TimeControl "180+1"]
[EndTime "14:07:58 PDT"]
[Termination "Mikhail_Bryakin won on time"]

1. e4 {[%clk 0:02:55.3]} 1... Nf6 {[%clk 0:03:00.6]} 2. e5 {[%clk 0:02:44.1]}
2... Nd5 {[%clk 0:03:00.8]} 3. d4 {[%clk 0:02:44.2]} 3... d6 {[%clk 0:03:00.9]}
4. c4 {[%clk 0:02:44.4]} 4... Nb6 {[%clk 0:03:01.3]} 5. f4 {[%clk 0:02:44.1]}
5... dxe5 {[%clk 0:03:01.8]} 6. fxe5 {[%clk 0:02:43.6]} 6... Bf5 {[%clk
0:03:01]} 7. Nf3 {[%clk 0:02:40.1]} 7... e6 {[%clk 0:02:55.1]} 8. Be3 {[%clk
0:02:38.8]} 8... Nc6 {[%clk 0:02:54.5]} 9. Nc3 {[%clk 0:02:34.6]} 9... Be7
{[%clk 0:02:54.1]} 10. Be2 {[%clk 0:02:33]} 10... O-O {[%clk 0:02:51.7]} 11. O-O
{[%clk 0:02:32.2]} 11... f6 {[%clk 0:02:51.5]} 12. exf6 {[%clk 0:02:31.3]} 12...
Bxf6 {[%clk 0:02:52.4]} 13. Qd2 {[%clk 0:02:11]} 13... Qe7 {[%clk 0:02:36.3]}
14. Rad1 {[%clk 0:02:09]} 14... Rad8 {[%clk 0:02:36.1]} 15. b3 {[%clk
0:02:06.8]} 15... Bg4 {[%clk 0:02:27.3]} 16. Ne4 {[%clk 0:02:00.4]} 16... Bf5
{[%clk 0:01:42.5]} 17. Nxf6+ {[%clk 0:01:59.4]} 17... gxf6 {[%clk 0:01:41.1]}
18. Qc3 {[%clk 0:01:55.9]} 18... Bg6 {[%clk 0:01:32.5]} 19. Rd2 {[%clk
0:01:54.2]} 19... Nc8 {[%clk 0:01:28.1]} 20. Nh4 {[%clk 0:01:46.8]} 20... Nd6
{[%clk 0:01:26.5]} 21. Nxg6 {[%clk 0:01:46.2]} 21... hxg6 {[%clk 0:01:26.4]} 22.
Bf3 {[%clk 0:01:39.9]} 22... Nf5 {[%clk 0:01:21.4]} 23. Bf2 {[%clk 0:01:36.6]}
23... Rfe8 {[%clk 0:01:07.7]} 24. Re1 {[%clk 0:01:34.1]} 24... e5 {[%clk
0:00:48.2]} 25. d5 {[%clk 0:01:29.7]} 25... Ncd4 {[%clk 0:00:46.5]} 26. Be4
{[%clk 0:01:24.1]} 26... Kg7 {[%clk 0:00:41.3]} 27. Qd3 {[%clk 0:01:13.9]} 27...
c6 {[%clk 0:00:29.8]} 28. g4 {[%clk 0:01:09.6]} 28... cxd5 {[%clk 0:00:27.6]}
29. Bxd5 {[%clk 0:01:04.9]} 29... Qb4 {[%clk 0:00:13]} 30. gxf5 {[%clk 0:00:59]}
30... Qxd2 {[%clk 0:00:12.5]} 31. Qxd2 {[%clk 0:00:57.8]} 31... Nf3+ {[%clk
0:00:12.7]} 32. Bxf3 {[%clk 0:00:57]} 32... Rxd2 {[%clk 0:00:13.6]} 33. fxg6
{[%clk 0:00:55.6]} 33... Kxg6 {[%clk 0:00:13.4]} 34. Re2 {[%clk 0:00:49.6]}
34... Rd7 {[%clk 0:00:09]} 35. Bd5 {[%clk 0:00:42.7]} 35... f5 {[%clk
0:00:07.5]} 36. Bd4 {[%clk 0:00:37.5]} 36... e4 {[%clk 0:00:02.4]} 37. Kf2
{[%clk 0:00:37]} 37... e3+ {[%clk 0:00:01.9]} 38. Rxe3 {[%clk 0:00:36.9]} 38...
Rxe3 {[%clk 0:00:01.9]} 39. Kxe3 {[%clk 0:00:36.8]} 39... Rh7 {[%clk 0:00:02.4]}
40. Be5 {[%clk 0:00:36.2]} 40... b6 {[%clk 0:00:01.2]} 41. b4 {[%clk 0:00:32.8]}
41... Rh3+ {[%clk 0:00:01.6]} 42. Bg3 {[%clk 0:00:32.1]} 42... Kg5 {[%clk
0:00:02.3]} 43. Bg2 {[%clk 0:00:28.3]} 43... Rh7 {[%clk 0:00:02.2]} 44. c5
{[%clk 0:00:27.8]} 44... Re7+ {[%clk 0:00:02.5]} 45. Kd4 {[%clk 0:00:28]} 45...
bxc5+ {[%clk 0:00:02.2]} 46. bxc5 {[%clk 0:00:28.2]} 46... f4 {[%clk 0:00:02.7]}
47. h4+ {[%clk 0:00:17]} 47... Kg4 {[%clk 0:00:02.8]} 48. Bxf4 {[%clk
0:00:15.7]} 48... Kxf4 {[%clk 0:00:02.9]} 49. c6 {[%clk 0:00:14.8]} 49... Re2
{[%clk 0:00:01.9]} 50. Bd5 {[%clk 0:00:14.3]} 50... Rc2 {[%clk 0:00:01.6]} 51.
Bc4 {[%clk 0:00:14]} 51... Rd2+ {[%clk 0:00:01]} 52. Kc5 {[%clk 0:00:14.1]}
52... Rd8 {[%clk 0:00:01.4]} 53. c7 {[%clk 0:00:14.4]} 53... Rf8 {[%clk
0:00:01.4]} 54. Be6 {[%clk 0:00:14]} 1-0

[Event "Late-Titled-Tuesday-Blitz-May-28-2024"]
[Site "Chess.com"]
[Date "2024.05.28"]
[Round "1"]
[White "Alex_Sahakyan2006"]
[Black "DanylaBagrov"]
[Result "0-1"]
[WhiteElo "2799"]
[BlackElo "2477"]
[TimeControl "180+1"]
[EndTime "14:08:00 PDT"]
[Termination "DanylaBagrov won by checkmate"]

1. e4 {[%clk 0:03:00.9]} 1... c5 {[%clk 0:02:59]} 2. Nf3 {[%clk 0:02:59.2]} 2...
a6 {[%clk 0:02:59.2]} 3. g3 {[%clk 0:02:51.2]} 3... Nc6 {[%clk 0:02:54.7]} 4.
Bg2 {[%clk 0:02:50.4]} 4... e6 {[%clk 0:02:55.3]} 5. O-O {[%clk 0:02:48.3]} 5...
b5 {[%clk 0:02:55.9]} 6. a4 {[%clk 0:02:45.7]} 6... Bb7 {[%clk 0:02:55.1]} 7.
axb5 {[%clk 0:02:35.2]} 7... axb5 {[%clk 0:02:56]} 8. Rxa8 {[%clk 0:02:35.2]}
8... Qxa8 {[%clk 0:02:52.9]} 9. d4 {[%clk 0:02:35.7]} 9... cxd4 {[%clk 0:02:27]}
10. Nxd4 {[%clk 0:02:36.6]} 10... Nxd4 {[%clk 0:02:27]} 11. Qxd4 {[%clk
0:02:37.5]} 11... Nf6 {[%clk 0:02:27]} 12. Nc3 {[%clk 0:02:34.5]} 12... Bc6
{[%clk 0:02:17.3]} 13. Bf4 {[%clk 0:02:16.4]} 13... b4 {[%clk 0:02:08]} 14. Nd5
{[%clk 0:01:51.5]} 14... Nxd5 {[%clk 0:01:11.6]} 15. exd5 {[%clk 0:01:49.8]}
15... Bxd5 {[%clk 0:01:11]} 16. Bxd5 {[%clk 0:01:44.3]} 16... Qxd5 {[%clk
0:01:10.9]} 17. Qxd5 {[%clk 0:01:44.6]} 17... exd5 {[%clk 0:01:10.9]} 18. Re1+
{[%clk 0:01:37.5]} 18... Kd8 {[%clk 0:01:10.5]} 19. Ra1 {[%clk 0:01:38.2]} 19...
f6 {[%clk 0:01:01.9]} 20. Ra8+ {[%clk 0:01:35.7]} 20... Ke7 {[%clk 0:01:02.3]}
21. Bd2 {[%clk 0:01:35.9]} 21... b3 {[%clk 0:00:55.2]} 22. cxb3 {[%clk
0:01:28.8]} 22... g6 {[%clk 0:00:55.6]} 23. Bb4+ {[%clk 0:01:21.1]} 23... d6
{[%clk 0:00:55.2]} 24. Bc3 {[%clk 0:00:51.4]} 24... Ke6 {[%clk 0:00:39.1]} 25.
b4 {[%clk 0:00:25.7]} 25... Bg7 {[%clk 0:00:39]} 26. Ra7 {[%clk 0:00:26.2]}
26... Bh6 {[%clk 0:00:35.5]} 27. b5 {[%clk 0:00:22.6]} 27... Rb8 {[%clk
0:00:34.7]} 28. Rxh7 {[%clk 0:00:21.7]} 28... Bc1 {[%clk 0:00:31.2]} 29. Rg7
{[%clk 0:00:20.5]} 29... Kf5 {[%clk 0:00:21.8]} 30. Rf7 {[%clk 0:00:14.8]} 30...
Ke4 {[%clk 0:00:15.7]} 31. f3+ {[%clk 0:00:08.1]} 31... Kd3 {[%clk 0:00:07.8]}
32. Rxf6 {[%clk 0:00:08.4]} 32... Rxb5 {[%clk 0:00:06.7]} 33. Rxg6 {[%clk
0:00:07.2]} 33... d4 {[%clk 0:00:07.1]} 34. Rxd6 {[%clk 0:00:07.1]} 34... Be3+
{[%clk 0:00:07.5]} 35. Kg2 {[%clk 0:00:06.5]} 35... Kc4 {[%clk 0:00:07.9]} 36.
Be1 {[%clk 0:00:05.7]} 36... Rxb2+ {[%clk 0:00:08.3]} 37. Kh3 {[%clk 0:00:06.1]}
37... Bg1 {[%clk 0:00:07.7]} 38. Kg4 {[%clk 0:00:04.9]} 38... Rxh2 {[%clk
0:00:06.4]} 39. Ba5 {[%clk 0:00:04.6]} 39... d3 {[%clk 0:00:05.6]} 40. Bd8
{[%clk 0:00:04.8]} 40... Bc5 {[%clk 0:00:05.2]} 41. Rd7 {[%clk 0:00:04.6]} 41...
Bd4 {[%clk 0:00:05.2]} 42. Bg5 {[%clk 0:00:04.5]} 42... Re2 {[%clk 0:00:02.3]}
43. Rc7+ {[%clk 0:00:04.4]} 43... Kd5 {[%clk 0:00:02.3]} 44. Rd7+ {[%clk
0:00:04.7]} 44... Kc4 {[%clk 0:00:02.6]} 45. f4 {[%clk 0:00:04.9]} 45... d2
{[%clk 0:00:02.5]} 46. Rc7+ {[%clk 0:00:05.6]} 46... Kd3 {[%clk 0:00:02.4]} 47.
Rc1 {[%clk 0:00:05.9]} 47... dxc1=Q {[%clk 0:00:02.6]} 48. f5 {[%clk 0:00:06.4]}
48... Qd1 {[%clk 0:00:03.2]} 49. Kh5 {[%clk 0:00:06.6]} 49... Rf2+ {[%clk
0:00:03.1]} 50. g4 {[%clk 0:00:06.2]} 50... Rxf5 {[%clk 0:00:02.7]} 51. Kg6
{[%clk 0:00:06.7]} 51... Rxg5+ {[%clk 0:00:03.3]} 52. Kxg5 {[%clk 0:00:07.4]}
52... Be3+ {[%clk 0:00:04.1]} 53. Kh4 {[%clk 0:00:07.7]} 53... Qh1+ {[%clk
0:00:04.5]} 54. Kg3 {[%clk 0:00:07.8]} 54... Qg1+ {[%clk 0:00:05]} 55. Kh4
{[%clk 0:00:07.8]} 55... Qh2# {[%clk 0:00:04.3]} 0-1

[Event "Late-Titled-Tuesday-Blitz-May-28-2024"]
[Site "Chess.com"]
[Date "2024.05.28"]
[Round "1"]
[White "Veleamater"]
[Black "Sawatdeekhrap"]
[Result "0-1"]
[WhiteElo "2438"]
[BlackElo "2767"]
[TimeControl "180+1"]
[EndTime "14:08:00 PDT"]
[Termination "Sawatdeekhrap won on time"]

1. g3 {[%clk 0:03:00.9]} 1... d5 {[%clk 0:02:59.7]} 2. Bg2 {[%clk 0:03:00.1]}
2... c6 {[%clk 0:03:00.4]} 3. d3 {[%clk 0:02:59.7]} 3... Bf5 {[%clk 0:03:00.1]}
4. Nf3 {[%clk 0:02:59.6]} 4... h6 {[%clk 0:02:59.9]} 5. O-O {[%clk 0:02:59.3]}
5... e6 {[%clk 0:03:00.5]} 6. Nc3 {[%clk 0:02:58.2]} 6... Nd7 {[%clk 0:03:00.8]}
7. Nd4 {[%clk 0:02:53.1]} 7... Bh7 {[%clk 0:03:00.6]} 8. e4 {[%clk 0:02:51.9]}
8... Bc5 {[%clk 0:03:00.2]} 9. Nb3 {[%clk 0:02:51.1]} 9... Bb6 {[%clk
0:03:00.7]} 10. h3 {[%clk 0:02:48.3]} 10... Ne7 {[%clk 0:03:01.2]} 11. Kh2
{[%clk 0:02:48.1]} 11... O-O {[%clk 0:03:01.6]} 12. f4 {[%clk 0:02:48.1]} 12...
a5 {[%clk 0:03:01.7]} 13. a4 {[%clk 0:02:26.8]} 13... Re8 {[%clk 0:02:56.7]} 14.
g4 {[%clk 0:02:26]} 14... Nc5 {[%clk 0:02:46.1]} 15. Nxc5 {[%clk 0:02:23]} 15...
Bxc5 {[%clk 0:02:46.7]} 16. f5 {[%clk 0:02:14.6]} 16... Qc7+ {[%clk 0:02:42.3]}
17. Bf4 {[%clk 0:02:12.9]} 17... Bd6 {[%clk 0:02:42.6]} 18. Bxd6 {[%clk
0:02:09.7]} 18... Qxd6+ {[%clk 0:02:43.5]} 19. Kh1 {[%clk 0:02:09.1]} 19... exf5
{[%clk 0:02:37.1]} 20. exf5 {[%clk 0:02:04.4]} 20... Kh8 {[%clk 0:02:28.7]} 21.
Qf3 {[%clk 0:01:58.4]} 21... Ng8 {[%clk 0:02:27.3]} 22. h4 {[%clk 0:01:56.6]}
22... Qb4 {[%clk 0:02:20.1]} 23. Rab1 {[%clk 0:01:56.1]} 23... h5 {[%clk
0:02:16.7]} 24. gxh5 {[%clk 0:01:44.2]} 24... Qxh4+ {[%clk 0:02:15.8]} 25. Bh3
{[%clk 0:01:42.9]} 25... Nf6 {[%clk 0:02:13.3]} 26. Kg2 {[%clk 0:01:39.1]} 26...
d4 {[%clk 0:02:06.6]} 27. Ne4 {[%clk 0:01:27.1]} 27... Nxe4 {[%clk 0:02:02.9]}
28. dxe4 {[%clk 0:01:26.4]} 28... Rxe4 {[%clk 0:02:03.8]} 29. Rf2 {[%clk
0:01:26]} 29... Rae8 {[%clk 0:01:56.6]} 30. Rh1 {[%clk 0:01:24.7]} 30... Qg5+
{[%clk 0:01:51.1]} 31. Kh2 {[%clk 0:01:20.4]} 31... Re3 {[%clk 0:01:50.6]} 32.
Qg4 {[%clk 0:01:19.9]} 32... Qf6 {[%clk 0:01:35.4]} 33. Bg2 {[%clk 0:01:01.5]}
33... Qe5+ {[%clk 0:01:27.1]} 34. Qf4 {[%clk 0:00:59.3]} 34... Qxf4+ {[%clk
0:01:22.6]} 35. Rxf4 {[%clk 0:00:59.3]} 35... Re2 {[%clk 0:01:23.3]} 36. Rc1
{[%clk 0:00:55.5]} 36... c5 {[%clk 0:01:21.5]} 37. Kg3 {[%clk 0:00:52.4]} 37...
R8e3+ {[%clk 0:01:20.3]} 38. Rf3 {[%clk 0:00:49]} 38... Bxf5 {[%clk 0:01:18.8]}
39. Rxe3 {[%clk 0:00:47.9]} 39... Rxe3+ {[%clk 0:01:19.7]} 40. Kf4 {[%clk
0:00:48.1]} 40... Bd7 {[%clk 0:01:16.4]} 41. Bxb7 {[%clk 0:00:46.4]} 41... Bxa4
{[%clk 0:01:13.1]} 42. Bd5 {[%clk 0:00:45.9]} 42... f6 {[%clk 0:01:03.7]} 43. b3
{[%clk 0:00:42.8]} 43... Be8 {[%clk 0:01:00]} 44. Bf3 {[%clk 0:00:31.9]} 44...
Rc3 {[%clk 0:00:53.2]} 45. Be4 {[%clk 0:00:30]} 45... Kg8 {[%clk 0:00:48.3]} 46.
Ra1 {[%clk 0:00:21.8]} 46... c4 {[%clk 0:00:44]} 47. bxc4 {[%clk 0:00:19.9]}
47... a4 {[%clk 0:00:43.5]} 48. Rd1 {[%clk 0:00:11.7]} 48... a3 {[%clk
0:00:38.5]} 49. Bd3 {[%clk 0:00:07.8]} 49... Bxh5 {[%clk 0:00:34.3]} 50. Ra1
{[%clk 0:00:07.2]} 50... Bf7 {[%clk 0:00:34.5]} 51. Ke4 {[%clk 0:00:07]} 51...
a2 {[%clk 0:00:17.8]} 52. Kxd4 {[%clk 0:00:06.3]} 52... Ra3 {[%clk 0:00:17.6]}
53. c5 {[%clk 0:00:06.7]} 53... Kf8 {[%clk 0:00:15.1]} 0-1